bitfinex-derivatives/quotes_BTCF0:USTF0_20250930
["timestamp","ask_amount","ask_price","bid_price","bid_amount"]
[1759249248205,4.94679665,113100.0,113090.0,0.72969814]
[1759249250311,4.94679665,113100.0,113090.0,0.6662894]
[1759249250503,4.94679665,113100.0,113090.0,0.72973825]
[1759249250700,4.94679665,113100.0,113090.0,0.6662894]
[1759249250701,2.606,113100.0,113090.0,0.6662894]
[1759249250900,3.01623299,113100.0,113090.0,1.0662894]
[1759249251099,3.01583299,113100.0,113090.0,1.0662894]
[1759249251300,2.60608,113100.0,113090.0,1.0662894]
[1759249251496,3.01623299,113100.0,113090.0,1.14550927]
[1759249252400,0.41055299,113100.0,113090.0,1.14550927]
[1759249252601,1.79368,113100.0,113090.0,1.14550927]
[1759249252803,0.0004,113100.0,113090.0,1.55566226]
[1759249252998,0.81308,113100.0,113090.0,1.7461161]
[1759249253307,0.0004,113100.0,113090.0,1.7461161]
[1759249253612,0.81316,113100.0,113090.0,1.66689623]
[1759249253909,0.80294925,113100.0,113090.0,1.66689623]
[1759249254613,2.19308252,113120.0,113110.0,0.3013934]
[1759249254911,3.00636252,113120.0,113110.0,0.72562996]
[1759249255210,3.02359167,113120.0,113110.0,0.6621934]
[1759249255411,2.62494915,113120.0,113110.0,0.6621934]
[1759249255711,3.01707299,113120.0,113110.0,0.6621934]
[1759249255911,3.03503644,113120.0,113110.0,0.73314015]
[1759249256501,3.03503644,113120.0,113110.0,0.64474675]
[1759249256707,4.9655601,113120.0,113110.0,0.50753675]
[1759249256908,4.9655601,113120.0,113110.0,0.64474675]
[1759249257810,2.3590401,113120.0,113110.0,0.73314015]
[1759249258007,3.1715201,113120.0,113110.0,0.73314015]
[1759249258208,2.3586401,113120.0,113110.0,0.73314015]
[1759249258403,0.00199472,113120.0,113110.0,0.73314015]
[1759249258708,2.56407299,113140.0,113130.0,0.213]
[1759249259012,4.94667665,113140.0,113130.0,0.5738]
[1759249259210,4.94707665,113140.0,113130.0,0.5738]
[1759249260415,1.94825963,113140.0,113130.0,0.6621778]
[1759249260610,4.55349963,113140.0,113130.0,0.6621778]
[1759249260810,1.94825963,113140.0,113130.0,0.6621778]
[1759249261010,4.55389963,113140.0,113130.0,0.6621778]
[1759249261315,0.0008,113150.0,113140.0,0.30137]
[1759249261506,0.0016,113170.0,113160.0,0.3013544]
[1759249261708,0.00063,113180.0,113170.0,0.3013439]
[1759249261901,1.79447,113190.0,113180.0,0.3013388]
[1759249262203,4.53915366,113190.0,113180.0,0.63705506]
[1759249262405,4.53955366,113190.0,113180.0,0.5738]
[1759249262905,4.53955366,113190.0,113180.0,0.63704969]
[1759249263105,4.55729616,113190.0,113180.0,0.63704969]
[1759249264005,4.55729616,113190.0,113180.0,0.13903969]
[1759249264311,5.39809252,113190.0,113180.0,0.04734402]
[1759249265009,4.95729616,113190.0,113180.0,0.213]
[1759249265213,4.95729616,113190.0,113180.0,0.62110141]
[1759249265616,4.95729616,113190.0,113180.0,0.5738]
[1759249265917,2.76509616,113190.0,113180.0,0.662139]
[1759249266214,2.76469616,113190.0,113180.0,0.709404]
[1759249266408,2.76509616,113190.0,113180.0,0.662139]
[1759249266714,2.76497616,113190.0,113180.0,0.73451134]
[1759249267317,2.76497616,113190.0,113180.0,0.78174519]
[1759249268314,1.94929616,113190.0,113180.0,0.78174519]
[1759249268717,2.76457616,113190.0,113180.0,0.78174519]
[1759249269117,2.76473616,113190.0,113180.0,0.78174519]
[1759249269915,0.8342125,113190.0,113180.0,0.78174519]
[1759249270114,1.94929616,113190.0,113180.0,0.78174519]
[1759249270313,1.94929616,113190.0,113180.0,1.65414275]
[1759249270314,0.0181425,113190.0,113180.0,1.65414275]
[1759249270516,0.8333025,113190.0,113180.0,1.65414275]
[1759249270826,0.8337025,113190.0,113180.0,1.65414275]
[1759249271121,0.8337025,113190.0,113180.0,1.18174519]
[1759249273423,0.364,113230.0,113190.0,0.213]
[1759249273424,1.93052366,113200.0,113190.0,0.213]
[1759249273717,0.364,113230.0,113210.0,0.213]
[1759249273718,1.81020301,113220.0,113210.0,0.213]
[1759249273906,2.62532301,113220.0,113210.0,0.213]
[1759249274112,4.52613993,113220.0,113210.0,0.213]
[1759249274314,4.99893749,113220.0,113210.0,0.213]
[1759249274512,4.99853749,113220.0,113210.0,0.213]
[1759249274713,4.52653993,113220.0,113210.0,0.213]
[1759249275123,4.52653993,113220.0,113210.0,0.5738]
[1759249276625,4.52653993,113220.0,113210.0,0.43659]
[1759249277618,4.52653993,113220.0,113210.0,0.5738]
[1759249280018,5.28733993,113220.0,113200.0,0.1641132]
[1759249280218,1.90144692,113210.0,113200.0,0.3036132]
[1759249280525,1.90144692,113210.0,113200.0,0.6644132]
[1759249280725,2.71684692,113210.0,113200.0,0.6644132]
[1759249281144,0.81623,113210.0,113200.0,1.62513827]
[1759249281828,0.81663,113210.0,113200.0,1.62513827]
[1759249282830,0.81663,113210.0,113200.0,1.15274071]
[1759249283029,0.81663,113210.0,113200.0,1.19997456]
[1759249283928,0.81663,113210.0,113200.0,1.02332385]
[1759249284127,0.81663,113210.0,113200.0,0.6644132]
[1759249285132,0.00103,113210.0,113200.0,0.72766289]
[1759249285431,0.81607,113210.0,113200.0,0.72766289]
[1759249285731,0.81631,113210.0,113200.0,0.72766289]
[1759249285940,0.81552,113210.0,113200.0,0.81599821]
[1759249286229,0.01808301,113220.0,113210.0,0.3100056]
[1759249286435,0.83320301,113220.0,113210.0,0.71805631]
[1759249286729,2.73401993,113220.0,113210.0,0.71805631]
[1759249286927,1.91889993,113220.0,113210.0,0.71805631]
[1759249287241,2.7235388,113220.0,113210.0,0.6708056]
[1759249287437,2.7235388,113220.0,113210.0,1.04583315]
[1759249287731,1.9082988,113220.0,113210.0,1.10908284]
[1759249287931,2.7235388,113220.0,113210.0,1.10908284]
[1759249288335,2.7227488,113220.0,113210.0,0.73405529]
[1759249288529,1.9076688,113220.0,113210.0,0.73405529]
[1759249288722,2.7226688,113220.0,113210.0,0.73405529]
[1759249288938,2.7230288,113220.0,113210.0,0.73405529]
[1759249289124,2.7230288,113220.0,113210.0,0.6708056]
[1759249289325,2.70930327,113220.0,113210.0,0.6708056]
[1759249289522,2.72703123,113220.0,113210.0,0.6708056]
[1759249289925,2.72640123,113220.0,113210.0,0.6708056]
[1759249290326,1.91207123,113220.0,113210.0,0.6708056]
[1759249290533,2.72695123,113220.0,113210.0,0.6708056]
[1759249291535,2.72695123,113220.0,113210.0,0.75010131]
[1759249291927,1.89434327,113220.0,113210.0,0.75010131]
[1759249292130,1.89371327,113220.0,113210.0,0.75010131]
[1759249292330,0.0004,113220.0,113210.0,1.63123006]
[1759249292637,0.81456,113220.0,113210.0,1.7421002]
[1759249292932,0.81496,113220.0,113210.0,1.7421002]
[1759249293345,0.81496,113220.0,113210.0,1.27000325]
[1759249294029,0.815,113220.0,113210.0,1.27000325]
[1759249294722,0.815,113220.0,113210.0,1.40031502]
[1759249295336,0.815,113220.0,113210.0,1.87241197]
[1759249296227,0.35487916,113220.0,113210.0,1.97066695]
[1759249296534,0.35487916,113220.0,113210.0,1.85979681]
[1759249296735,0.35527916,113220.0,113210.0,1.85979681]
[1759249297133,0.35527916,113220.0,113210.0,1.97066695]
[1759249297328,0.34468027,113220.0,113210.0,1.97066695]
[1759249297830,0.3188805,113220.0,113210.0,1.97066695]
[1759249298226,0.3608,113250.0,113210.0,1.97066695]
[1759249298426,2.15208,113260.0,113250.0,0.08219]
[1759249298628,2.66304,113260.0,113250.0,0.08219]
[1759249298826,2.66304,113260.0,113250.0,0.6707744]
[1759249298827,1.91074298,113260.0,113250.0,0.6707744]
[1759249299034,1.91074298,113260.0,113250.0,0.64575736]
[1759249299230,4.51710298,113260.0,113250.0,0.64575736]
[1759249299432,4.51670298,113260.0,113250.0,0.64575736]
[1759249299635,4.51710298,113260.0,113250.0,0.64575736]
[1759249300337,2.72670298,113260.0,113250.0,0.76136046]
[1759249300537,2.72630298,113260.0,113250.0,0.67307626]
[1759249300841,2.72670298,113260.0,113250.0,0.67307626]
[1759249301039,2.72670298,113260.0,113250.0,0.76136046]
[1759249301641,3.19879993,113260.0,113250.0,0.53357626]
[1759249301832,3.19879993,113260.0,113250.0,0.60525441]
[1759249302230,3.19879993,113260.0,113250.0,0.74475441]
[1759249303328,3.48750298,113260.0,113250.0,0.16226441]
[1759249303639,3.95959993,113260.0,113250.0,0.16226441]
[1759249305238,3.14403993,113260.0,113250.0,0.38395441]
[1759249305541,3.14403993,113260.0,113250.0,0.47223861]
[1759249305741,5.75095993,113260.0,113250.0,0.47223861]
[1759249305942,3.14403993,113260.0,113250.0,0.47223861]
[1759249306138,3.14403993,113260.0,113250.0,0.83303861]
[1759249306139,2.78323993,113260.0,113250.0,0.83303861]
[1759249306338,2.78323993,113260.0,113250.0,1.70513556]
[1759249306339,0.0004,113260.0,113250.0,1.70513556]
[1759249306544,1.79096,113280.0,113250.0,1.70513556]
[1759249306545,1.79018618,113280.0,113270.0,0.3099586]
[1759249306842,0.3608,113290.0,113280.0,0.0803]
[1759249307045,0.3608,113290.0,113280.0,0.11187172]
[1759249307046,0.85168155,113290.0,113280.0,0.11187172]
[1759249307339,4.99187482,113290.0,113280.0,0.11187172]
[1759249307642,2.38339482,113290.0,113280.0,0.11187172]
[1759249307838,1.91169787,113290.0,113280.0,0.33964252]
[1759249308040,4.99243482,113290.0,113280.0,0.25138172]
[1759249308642,2.38379482,113290.0,113280.0,0.33964252]
[1759249308840,4.99223482,113290.0,113280.0,0.33964252]
[1759249309042,4.99223482,113290.0,113280.0,0.25138172]
[1759249309443,4.99207482,113290.0,113280.0,0.25138172]
[1759249310234,4.99207482,113290.0,113280.0,0.11187172]
[1759249310940,4.51997787,113290.0,113280.0,0.25138172]
[1759249311239,4.51997787,113290.0,113280.0,0.11187172]
[1759249311240,2.38379482,113290.0,113280.0,0.11187172]
[1759249311543,2.38379482,113290.0,113280.0,0.33964252]
[1759249311743,4.99211482,113290.0,113280.0,0.33964252]
[1759249311939,1.91169787,113290.0,113280.0,0.33964252]
[1759249312145,1.91169787,113290.0,113280.0,0.74780181]
[1759249312641,1.79152,113300.0,113290.0,0.308063]
[1759249312841,1.79152,113300.0,113290.0,0.70041741]
[1759249312842,4.50155327,113300.0,113290.0,0.70041741]
[1759249313040,2.71123327,113300.0,113290.0,0.70041741]
[1759249313236,1.80810075,113310.0,113300.0,0.0882456]
[1759249313545,0.01822075,113310.0,113300.0,1.17250696]
[1759249313748,0.01742075,113310.0,113300.0,1.24406878]
[1759249314045,0.83598075,113310.0,113300.0,0.77197183]
[1759249314253,0.01742075,113310.0,113300.0,1.17197183]
[1759249314442,0.83594075,113310.0,113300.0,1.17197183]
[1759249314743,0.83594075,113310.0,113300.0,1.08372623]
[1759249317749,3.20135097,113310.0,113300.0,0.32292623]
[1759249317948,3.20135097,113310.0,113300.0,0.18341623]
[1759249318350,2.72925402,113310.0,113300.0,0.18341623]
[1759249318553,2.72925402,113310.0,113300.0,0.32292623]
[1759249318750,1.91113402,113310.0,113300.0,0.32292623]
[1759249319049,4.51857402,113310.0,113300.0,0.68372623]
[1759249319251,0.83602075,113310.0,113300.0,1.15582318]
[1759249319445,0.83602075,113310.0,113300.0,1.24406868]
[1759249319646,0.83566075,113310.0,113300.0,0.78777661]
[1759249319846,0.83606075,113310.0,113300.0,0.78777661]
[1759249320557,0.83566075,113310.0,113300.0,0.78777661]
[1759249320748,0.01782075,113310.0,113300.0,0.78777661]
[1759249320944,0.83746075,113310.0,113300.0,0.78777661]
[1759249321151,0.01782075,113310.0,113300.0,0.78777661]
[1759249321352,0.83746075,113310.0,113300.0,1.28200715]
[1759249321855,0.83786075,113310.0,113300.0,1.28200715]
[1759249322354,0.01782075,113310.0,113300.0,1.28200715]
[1759249322655,0.27682075,113310.0,113300.0,1.28200715]
[1759249322857,0.82295528,113310.0,113300.0,1.23464786]
[1759249323153,0.82335528,113310.0,113300.0,1.23464786]
[1759249323452,0.81276351,113310.0,113300.0,1.23464786]
[1759249323654,0.81276351,113310.0,113300.0,1.345518]
[1759249324059,0.81276351,113310.0,113300.0,1.2572725]
[1759249324559,0.81276351,113310.0,113300.0,1.345518]
[1759249324755,0.81276351,113310.0,113300.0,1.31339301]
[1759249325055,2.70607678,113310.0,113300.0,0.82514751]
[1759249325355,2.70607678,113310.0,113300.0,0.07156182]
[1759249325356,3.57817373,113310.0,113300.0,0.07156182]
[1759249325553,4.02721143,113310.0,113300.0,0.07874515]
[1759249325753,3.93897373,113310.0,113300.0,0.06301613]
[1759249325947,4.02721143,113310.0,113290.0,0.06301613]
[1759249326152,2.72621022,113300.0,113290.0,0.0630275]
[1759249326356,3.12621022,113300.0,113280.0,0.8168327]
[1759249326556,0.83289695,113300.0,113290.0,0.15904515]
[1759249326857,0.85034264,113300.0,113290.0,0.15904515]
[1759249327157,5.35385591,113300.0,113290.0,0.15904515]
[1759249327556,2.27155896,113300.0,113290.0,0.29855515]
[1759249327756,5.35373591,113300.0,113290.0,0.07874515]
[1759249327953,5.35373591,113300.0,113290.0,0.15904515]
[1759249328258,5.35327333,113300.0,113290.0,0.14179356]
[1759249328453,5.35327333,113300.0,113290.0,0.06304841]
[1759249328653,5.32179153,113300.0,113290.0,0.06304841]
[1759249330050,3.11171153,113300.0,113290.0,0.06304841]
[1759249330256,5.72543153,113300.0,113290.0,0.06304841]
[1759249331062,3.11171153,113300.0,113290.0,0.23160201]
[1759249331255,5.72559153,113300.0,113290.0,0.23160201]
[1759249332356,3.11171153,113300.0,113290.0,0.23160201]
[1759249332557,4.88519896,113300.0,113290.0,0.37111201]
[1759249333163,4.88519896,113300.0,113290.0,0.23160201]
[1759249333459,4.88519896,113300.0,113290.0,0.06304841]
[1759249333460,5.72535153,113300.0,113290.0,0.06304841]
[1759249333860,5.81359703,113300.0,113290.0,0.06304841]
[1759249334566,3.19995703,113300.0,113280.0,0.06304841]
[1759249334757,2.69426584,113290.0,113280.0,0.06304841]
[1759249334956,5.70790584,113290.0,113280.0,0.06304841]
[1759249335152,5.26775327,113290.0,113280.0,0.06304841]
[1759249335358,5.70926584,113290.0,113280.0,0.06304841]
[1759249335560,5.70930584,113290.0,113280.0,0.06304841]
[1759249335762,5.70934584,113290.0,113280.0,0.06304841]
[1759249336166,2.65411327,113290.0,113280.0,0.0882613]
[1759249336362,2.25411327,113290.0,113280.0,0.24730645]
[1759249336559,4.50875327,113290.0,113280.0,0.38681645]
[1759249336760,1.89371327,113290.0,113280.0,0.38681645]
[1759249336959,4.50875327,113290.0,113280.0,0.38681645]
[1759249337159,4.50875327,113290.0,113280.0,0.29855515]
[1759249337868,4.49807805,113290.0,113280.0,0.29855515]
[1759249338068,4.49767805,113290.0,113280.0,0.21981]
[1759249338265,4.49807805,113290.0,113280.0,0.28990906]
[1759249339867,4.49759805,113290.0,113280.0,0.37816996]
[1759249340269,1.88311805,113290.0,113280.0,0.37816996]
[1759249340764,4.49747805,113290.0,113280.0,0.37816996]
[1759249340966,3.67335805,113290.0,113280.0,0.37816996]
[1759249341175,4.49723805,113290.0,113280.0,0.45717317]
[1759249341360,4.49763805,113290.0,113280.0,0.45717317]
[1759249341563,1.88311805,113290.0,113280.0,0.45717317]
[1759249341764,2.6148,113290.0,113280.0,0.4890401]
[1759249342469,2.6148,113290.0,113280.0,0.8498401]
[1759249342671,2.61468,113290.0,113280.0,0.8498401]
[1759249343371,2.61468,113290.0,113280.0,1.2498401]
[1759249343372,0.0004,113290.0,113280.0,1.2498401]
[1759249343675,0.82388,113290.0,113280.0,1.13896996]
[1759249343972,0.82428,113290.0,113280.0,1.13896996]
[1759249344772,0.68501025,113290.0,113280.0,1.13896996]
[1759249345270,0.68501025,113290.0,113280.0,1.21801406]
[1759249345469,0.68501025,113290.0,113280.0,1.13896996]
[1759249345670,0.68501025,113290.0,113280.0,1.21801588]
[1759249346776,0.68501025,113290.0,113280.0,1.13896996]
[1759249349377,0.68501025,113290.0,113280.0,1.05070906]
[1759249349587,3.00788087,113290.0,113280.0,0.28990906]
[1759249349784,3.38293892,113290.0,113280.0,0.15039906]
[1759249349980,5.33635062,113290.0,113280.0,0.3983908]
[1759249350176,5.33635062,113290.0,113280.0,0.2610608]
[1759249350680,5.33635062,113290.0,113280.0,0.1807608]
[1759249350979,5.78540372,113290.0,113280.0,0.11066174]
[1759249351175,5.78540372,113290.0,113280.0,0.07909387]
[1759249351375,5.78540422,113290.0,113280.0,0.07909642]
[1759249352782,5.78540422,113290.0,113280.0,0.06331511]
[1759249353793,3.17232422,113290.0,113280.0,0.06331511]
[1759249353981,5.78724422,113290.0,113280.0,0.06331511]
[1759249354387,1.90766364,113280.0,113270.0,0.07773569]
[1759249354589,2.70861621,113280.0,113260.0,0.11066174]
[1759249354883,2.70861621,113280.0,113250.0,0.22644947]
[1759249354884,3.53310731,113270.0,113250.0,0.22644947]
[1759249355084,2.63809413,113260.0,113250.0,0.22644947]
[1759249355289,2.62035551,113260.0,113250.0,0.22644947]
[1759249355484,2.62035551,113260.0,113250.0,0.44712947]
[1759249355790,2.25955551,113260.0,113250.0,0.44712947]
[1759249355983,4.87423551,113260.0,113250.0,0.44712947]
[1759249356179,2.62035551,113260.0,113250.0,0.13816777]
[1759249356484,2.62035551,113260.0,113250.0,0.87890421]
[1759249356485,1.83714156,113260.0,113250.0,0.87890421]
[1759249356681,2.63305862,113260.0,113250.0,1.27890421]
[1759249356886,2.63345862,113260.0,113250.0,1.16824247]
[1759249357082,2.63305862,113260.0,113250.0,1.16824247]
[1759249357283,2.63345862,113260.0,113250.0,1.16824247]
[1759249357491,2.63345862,113260.0,113250.0,1.07995807]
[1759249358191,5.25381413,113260.0,113250.0,0.31915807]
[1759249358387,5.25381413,113260.0,113250.0,0.18182807]
[1759249358692,4.89301413,113260.0,113250.0,0.18182807]
[1759249359394,4.89301413,113260.0,113250.0,0.31915807]
[1759249359594,1.83754156,113260.0,113250.0,0.67995807]
[1759249359890,2.63365862,113260.0,113250.0,0.67995807]
[1759249360091,4.45306156,113260.0,113250.0,0.67995807]
[1759249360291,1.83754156,113260.0,113250.0,0.67995807]
[1759249360492,4.45294156,113260.0,113250.0,0.67995807]
[1759249360991,4.43839089,113260.0,113250.0,0.67995807]
[1759249361379,4.43835089,113260.0,113250.0,0.67995807]
[1759249361585,1.83016903,113260.0,113250.0,0.79061981]
[1759249361784,0.01757555,113260.0,113250.0,0.87890421]
[1759249362081,2.63313555,113260.0,113250.0,0.87890421]
[1759249362284,2.63313555,113260.0,113250.0,1.27890421]
[1759249362285,0.01797555,113260.0,113250.0,1.27890421]
[1759249362481,0.01797555,113260.0,113250.0,1.8073531]
[1759249362686,0.84285555,113260.0,113250.0,1.25653879]
[1759249362881,0.84325555,113260.0,113250.0,0.76825439]
[1759249363085,0.84325555,113260.0,113250.0,0.96720053]
[1759249363286,0.84325555,113260.0,113250.0,0.87890421]
[1759249363486,0.84325555,113260.0,113250.0,0.76824247]
[1759249363897,0.84325555,113260.0,113250.0,0.67995807]
[1759249364483,3.0960016,113260.0,113250.0,0.75905505]
[1759249364790,3.0960016,113260.0,113250.0,0.86971679]
[1759249364995,3.0960016,113260.0,113250.0,0.79061981]
[1759249365195,2.65584903,113260.0,113250.0,0.79061981]
[1759249365696,1.83056903,113260.0,113250.0,0.79061981]
[1759249365896,4.44672903,113260.0,113250.0,0.79061981]
[1759249366489,4.44672903,113260.0,113250.0,0.65328981]
[1759249367995,4.44672903,113260.0,113250.0,0.54262807]
[1759249368197,4.8868816,113260.0,113250.0,0.54262807]
[1759249368897,4.44684903,113260.0,113250.0,0.87890401]
[1759249369304,4.44628903,113260.0,113250.0,0.87890401]
[1759249369997,4.44628903,113260.0,113250.0,0.75903831]
[1759249370598,4.44628903,113260.0,113250.0,0.84732241]
[1759249370798,4.44636903,113260.0,113250.0,0.75903831]
[1759249371501,4.44636903,113260.0,113250.0,0.84732241]
[1759249371702,4.44636903,113260.0,113250.0,0.75903831]
[1759249371903,4.44636903,113260.0,113250.0,0.84732241]
[1759249372395,3.62116903,113260.0,113250.0,0.84732241]
[1759249372599,4.44628903,113260.0,113250.0,0.84732241]
[1759249374104,4.44628903,113260.0,113250.0,0.75903831]
[1759249375403,4.44628903,113260.0,113250.0,0.62170831]
[1759249376396,1.83056903,113260.0,113250.0,0.84002281]
[1759249376795,3.62116903,113260.0,113250.0,0.84002281]
[1759249377003,4.44612903,113260.0,113250.0,0.84002281]
[1759249377400,4.44644903,113260.0,113250.0,0.84002281]
[1759249378100,4.43193855,113260.0,113250.0,0.76094257]
[1759249378295,4.43193855,113260.0,113250.0,0.87160431]
[1759249379301,4.42831348,113260.0,113250.0,0.87160431]
[1759249379603,4.43925693,113260.0,113250.0,0.87160431]
[1759249380005,4.43925693,113260.0,113250.0,0.78331981]
[1759249380406,4.43925693,113260.0,113250.0,0.20913981]
[1759249380601,4.43925693,113260.0,113250.0,0.28907981]
[1759249380602,4.8794095,113260.0,113250.0,0.28907981]
[1759249381107,4.43925693,113260.0,113250.0,0.28907981]
[1759249381806,4.8794095,113260.0,113250.0,0.20913981]
[1759249382196,3.0888095,113260.0,113250.0,0.20913981]
[1759249382409,4.8791695,113260.0,113250.0,0.28907981]
[1759249382709,5.2791695,113260.0,113250.0,0.17779401]
[1759249383004,4.41880519,113260.0,113250.0,0.39673257]
[1759249383206,3.47486198,113260.0,113250.0,0.75753257]
[1759249383403,4.29962198,113260.0,113250.0,0.75753257]
[1759249383600,1.68422198,113260.0,113250.0,0.75753257]
[1759249383800,4.30006198,113260.0,113250.0,0.75753257]
[1759249384007,4.30006198,113260.0,113250.0,0.78028303]
[1759249384504,4.30006198,113260.0,113250.0,0.41948303]
[1759249384705,4.74021455,113260.0,113250.0,0.28945303]
[1759249384905,4.74021455,113260.0,113250.0,0.17841807]
[1759249385112,4.74021455,113260.0,113250.0,0.17778143]
[1759249385513,4.74021455,113260.0,113250.0,0.25772143]
[1759249386804,5.50101455,113260.0,113250.0,0.10680939]
[1759249387000,2.88557455,113260.0,113250.0,0.13854099]
[1759249387205,4.30102198,113260.0,113250.0,0.50662368]
[1759249387411,4.30102198,113260.0,113250.0,0.41833918]
[1759249387712,1.68422198,113260.0,113250.0,0.50662368]
[1759249387913,4.30106198,113260.0,113250.0,0.50662368]
[1759249388111,4.28671084,113260.0,113250.0,0.50662368]
[1759249388907,4.28671084,113260.0,113250.0,0.41833918]
[1759249389315,4.2761131,113260.0,113250.0,0.41833918]
[1759249389615,5.07706567,113260.0,113250.0,0.20836918]
[1759249389911,3.43570822,113260.0,113250.0,0.20836918]
[1759249390112,5.07706567,113260.0,113250.0,0.20836918]
[1759249390407,5.07731181,113260.0,113250.0,0.20836918]
[1759249390602,5.1088627,113260.0,113250.0,0.20836918]
[1759249390810,5.5971402,113260.0,113250.0,0.13854099]
[1759249391010,5.57704812,113260.0,113250.0,0.13854099]
[1759249391209,2.87410705,113260.0,113250.0,0.13854099]
[1759249391413,5.49010705,113260.0,113250.0,0.13854099]
[1759249391811,5.57838455,113260.0,113250.0,0.13854099]
[1759249392515,5.57838455,113260.0,113250.0,0.02750603]
[1759249392716,5.57838455,113260.0,113250.0,0.07926493]
[1759249393205,6.05033415,113260.0,113250.0,0.07926493]
[1759249393412,6.06768258,113260.0,113250.0,0.06341291]
[1759249393722,0.0882853,113250.0,113230.0,0.11103496]
[1759249393916,3.38744015,113240.0,113230.0,0.11103496]
[1759249394217,2.47410705,113240.0,113230.0,0.02009724]
[1759249394416,2.47410705,113240.0,113220.0,0.28277334]
[1759249394617,5.08974705,113230.0,113220.0,0.28277334]
[1759249394806,2.47410705,113230.0,113220.0,0.25101861]
[1759249395012,5.08962705,113230.0,113220.0,0.25101861]
[1759249396010,5.08966705,113230.0,113220.0,0.18274551]
[1759249396209,5.08946705,113230.0,113220.0,0.18274551]
[1759249397017,5.08946705,113230.0,113220.0,0.25182226]
[1759249397213,5.08942705,113230.0,113220.0,0.17254203]
[1759249397618,2.47410705,113230.0,113220.0,0.17254203]
[1759249397819,2.49159548,113230.0,113220.0,0.17254203]
[1759249398014,5.10655548,113230.0,113220.0,0.17254203]
[1759249398216,5.10655548,113230.0,113220.0,0.30257203]
[1759249398818,5.10655548,113230.0,113220.0,0.17254203]
[1759249399123,4.74567548,113230.0,113220.0,0.25182226]
[1759249399320,2.13079548,113230.0,113220.0,0.25182226]
[1759249399716,4.74543548,113230.0,113220.0,0.74495226]
[1759249400119,2.63208843,113230.0,113220.0,1.23326096]
[1759249400320,0.01748843,113230.0,113220.0,1.14495226]
[1759249400827,0.01748843,113230.0,113220.0,1.62593033]
[1759249401028,0.84156843,113230.0,113220.0,1.23326096]
[1759249401517,0.84208843,113230.0,113220.0,1.23326096]
[1759249401711,0.84168843,113230.0,113220.0,1.23326096]
[1759249401909,0.01788843,113230.0,113220.0,1.23326096]
[1759249402117,0.84200843,113230.0,113220.0,1.23326096]
[1759249402323,0.84180843,113230.0,113220.0,1.23326096]
[1759249403317,0.01788843,113230.0,113220.0,1.23326096]
[1759249403525,0.84180843,113230.0,113220.0,1.23326096]
[1759249403725,0.84140843,113230.0,113220.0,1.23326096]
[1759249403918,0.84180843,113230.0,113220.0,1.23326096]
[1759249404622,0.84152843,113230.0,113220.0,1.23326096]
[1759249404821,2.5293096,113250.0,113240.0,0.3030931]
[1759249404822,2.05736,113250.0,113240.0,0.3030931]
[1759249405022,2.05736,113250.0,113240.0,0.5756]
[1759249405023,4.52207745,113250.0,113240.0,0.5756]
[1759249405221,4.52127745,113250.0,113240.0,0.5756]
[1759249405427,4.52167745,113250.0,113240.0,0.5756]
[1759249405627,3.69831745,113250.0,113240.0,0.6638931]
[1759249405925,4.52167745,113250.0,113240.0,0.6638931]
[1759249406128,4.52167745,113250.0,113240.0,0.5756]
[1759249408624,5.35442705,113250.0,113240.0,0.14573447]
[1759249408927,5.35442705,113250.0,113240.0,0.06326447]
[1759249409526,5.08882705,113250.0,113240.0,0.06326447]
[1759249411130,5.08882705,113250.0,113230.0,0.74318043]
[1759249411338,2.97552,113250.0,113240.0,0.0632808]
[1759249411840,4.61687745,113250.0,113240.0,0.0632808]
[1759249412438,5.08882705,113250.0,113240.0,0.0632808]
[1759249413034,5.48882705,113250.0,113240.0,0.0632808]
[1759249413535,5.48842705,113250.0,113240.0,0.0632808]
[1759249413841,2.47410705,113250.0,113240.0,0.08247]
[1759249414139,5.08762705,113250.0,113240.0,0.08247]
[1759249414441,5.08772367,113250.0,113240.0,0.16175023]
[1759249415135,5.08788367,113250.0,113240.0,0.16175023]
[1759249415738,5.08772367,113250.0,113240.0,0.16175023]
[1759249417535,4.99067809,113250.0,113240.0,0.16175023]
[1759249418132,5.25631809,113250.0,113240.0,0.38237333]
[1759249418439,5.25631809,113250.0,113240.0,0.29408023]
[1759249418640,5.25631809,113250.0,113240.0,0.16175023]
[1759249418945,5.25671809,113250.0,113240.0,0.07928023]
[1759249419944,3.61536064,113250.0,113240.0,0.07928023]
[1759249420241,5.25671809,113250.0,113240.0,0.07928023]
[1759249421644,6.12000403,113250.0,113240.0,0.07928023]
[1759249421835,6.12000403,113250.0,113230.0,0.19031519]
[1759249421836,5.72000403,113250.0,113230.0,0.19031519]
[1759249422143,2.75215873,113240.0,113230.0,0.07928023]
[1759249422344,2.00215745,113240.0,113230.0,0.07928023]
[1759249422546,2.74155866,113240.0,113230.0,0.07928023]
[1759249422743,2.38075866,113240.0,113220.0,0.86500949]
[1759249422944,2.82683802,113230.0,113220.0,0.86500949]
[1759249423144,1.17598503,113230.0,113220.0,0.86500949]
[1759249423736,1.16163102,113230.0,113220.0,0.86500949]
[1759249424039,0.37500064,113230.0,113220.0,0.86500949]
[1759249424243,1.19592064,113230.0,113220.0,1.24001013]
[1759249424437,1.19592064,113230.0,113220.0,0.86500949]
[1759249424948,1.21362438,113230.0,113220.0,0.77670699]
[1759249425148,1.21362438,113230.0,113220.0,0.41590699]
[1759249425834,1.21362438,113230.0,113220.0,0.28357699]
[1759249426040,2.84438176,113230.0,113220.0,0.16840238]
[1759249428141,4.63506176,113230.0,113220.0,0.24730238]
[1759249428342,4.63498176,113230.0,113220.0,0.24730238]
[1759249429445,2.02346176,113230.0,113220.0,0.24730238]
[1759249429646,2.02346176,113230.0,113220.0,0.74445073]
[1759249429952,4.63474176,113230.0,113220.0,0.74445073]
[1759249430252,3.00438438,113230.0,113220.0,0.74445073]
[1759249430743,3.00478438,113230.0,113220.0,0.74445073]
[1759249430945,3.00474438,113230.0,113220.0,0.74445073]
[1759249431145,0.39310438,113230.0,113220.0,0.74445073]
[1759249431346,3.00458438,113230.0,113220.0,0.74445073]
[1759249432454,0.39310438,113230.0,113220.0,0.74445073]
[1759249432655,3.00458438,113230.0,113220.0,0.74445073]
[1759249433551,3.00458438,113230.0,113220.0,0.85548569]
[1759249433552,2.99398418,113230.0,113220.0,0.85548569]
[1759249433757,2.97962974,113230.0,113220.0,0.85548569]
[1759249433958,4.61038712,113230.0,113220.0,0.85548569]
[1759249434857,4.62838959,113230.0,113220.0,0.85548569]
[1759249435257,1.99681338,113230.0,113220.0,0.85548569]
[1759249435458,2.157136,113230.0,113220.0,1.23048633]
[1759249435659,2.976416,113230.0,113220.0,0.85548569]
[1759249435861,2.976816,113230.0,113220.0,0.85548569]
[1759249437155,0.01840247,113230.0,113220.0,0.85548569]
[1759249437458,1.13728311,113230.0,113220.0,1.23048633]
[1759249437661,1.13728311,113230.0,113220.0,1.11945137]
[1759249438864,0.76228247,113230.0,113220.0,1.11945137]
[1759249439052,1.13728311,113230.0,113220.0,1.11945137]
[1759249439950,2.76804049,113230.0,113220.0,0.74445073]